Cogmind - Beta 14 @@@ ROGUE MODE // 2025.03.19 @ 22:44:33 Player: Zaros426 Result: Destroyed by G-47 Trooper with Particle Gun Performance ------------- Evolutions (2) 1000 Regions Visited (7) 1400 Robots Destroyed (109) 545 Value Destroyed (2953) 2953 Prototype IDs (42) 840 Alien Tech Used (0) 0 Bonus (911) 911 TOTAL SCORE: 7649 Bonus ------- High Alert Combat Kills 206 Follower Combat Kills 205 Entered Garrisons 200 Aligned with FarCom 300 Cogmind --------- Core Integrity 0/550 Matter 300/300 Energy 36/100 System Corruption 0% Temperature Cool (9) Movement Core (700) Ox13 Location -8/Materials Parts ------- > --- POWER (1) -------- (None) > --- PROPULSION (4) --- (None) > --- UTILITY (4) ------ High-capacity Storage Unit Advanced Targeting Computer ECM Suite > --- WEAPON (2) ------- (None) > --- INVENTORY (20) --- Improved Cooling System Large Storage Unit High-capacity Matter Pod (200) Improved Terrain Scanner Improved Terrain Scan Processor Shock Rifle Particle Gun Pulse Rifle YOLO Cannon Heavy Missile Launcher Makeshift Hammer Fusion Bomb Trap Fusion Bomb Trap Fusion Bomb Trap Fusion Bomb Trap Gamma Bomb Trap Gamma Bomb Trap Gamma Bomb Trap Gamma Bomb Trap Peak State ------------ > --- POWER ------------ Nuclear Core > --- PROPULSION ------- Armored Wheel Armored Wheel Armored Wheel Aerolev Unit > --- UTILITY ---------- Advanced Heat Sink High-capacity Storage Unit Advanced Targeting Computer Hardened Light Armor Plating > --- WEAPON ----------- Heavy Laser Assault Cannon > --- INVENTORY -------- Light Treads Cooling System Large Storage Unit High-capacity Matter Pod Improved Terrain Scanner Improved Terrain Scan Processor ECM Suite Particle Gun Particle Gun YOLO Cannon Makeshift Hammer Fusion Bomb Trap Fusion Bomb Trap Fusion Bomb Trap Fusion Bomb Trap Gamma Bomb Trap Gamma Bomb Trap Gamma Bomb Trap Gamma Bomb Trap [Rating: 35] Favorites ----------- Power Ion Engine Engine Ion Engine Power Core Light Nuclear Core Propulsion Light Treads Treads Light Treads Leg Aluminum Leg Wheel Armored Wheel Hover Unit Aerolev Unit Utility Large Storage Unit Device Advanced Heat Sink Storage Large Storage Unit Processor Advanced Targeting Computer Hackware Hacking Suite Protection Light Armor Plating Weapon Heavy EM Pulse Gun Energy Gun Heavy EM Pulse Gun Ballistic Gun Assault Rifle Ballistic Cannon Assault Cannon Launcher Advanced EMP Blaster Special Weapon Mining Laser Impact Weapon Makeshift Hammer Special Melee Weapon Datajack Build | -11 -10 -10 -10 -9 -8 -8 -8 ------- Run | Yrd Mat Min Exi Min Mat Gar Mat Slots Evolved 4 | . . . . . 4 . . Power . | . . . . . . . . Propulsion 2 | . . . . . 2 . . Utility 2 | . . . . . 2 . . Weapon . | . . . . . . . . Parts Attached 112 | 6 14 9 2 2 22 23 34 Power 11 | 1 1 1 . 1 1 3 3 Engine 6 | 1 1 1 . 1 1 . 1 Core 5 | . . . . . . 3 2 Reactor . | . . . . . . . . Propulsion 33 | 2 4 3 . . 5 8 11 Treads 24 | 2 4 2 . . 5 1 10 Leg 4 | . . . . . . 4 . Wheel 4 | . . 1 . . . 3 . Hover 1 | . . . . . . . 1 Flight . | . . . . . . . . Utility 24 | 1 3 2 . 1 5 4 8 Device 13 | . . 1 . 1 2 3 6 Storage 3 | 1 1 . . . . 1 . Processor 2 | . . . . . 2 . . Hackware 1 | . . . . . 1 . . Protection 5 | . 2 1 . . . . 2 Artifact . | . . . . . . . . Weapon 44 | 2 6 3 2 . 11 8 12 Energy Gun 21 | . 3 3 1 . 5 2 7 Energy Cannon . | . . . . . . . . Ballistic Gun 9 | 2 1 . . . 3 3 . Ballistic Cannon 1 | . . . . . . . 1 Launcher 1 | . . . . . . . 1 Special Weapon 2 | . 2 . . . . . . Impact Weapon 9 | . . . . . 3 3 3 Slashing Weapon . | . . . . . . . . Piercing Weapon . | . . . . . . . . Special Melee Weapon 1 | . . . 1 . . . . Unidentified Prototypes 3 | . . . . . 1 . 2 Parts Lost 26 | . . 5 . 1 1 10 9 Power 5 | . . 1 . 1 . 2 1 Propulsion 10 | . . 1 . . . 4 5 Utility 4 | . . 1 . . . 1 2 Weapon 7 | . . 2 . . 1 3 1 Highest Loss Streak 7 | . . 2 . 1 1 3 7 To Critical Strikes 1 | . . . . . 1 . . Average Slot Usage (%) 92 | . 97 87 85 87 96 94 93 Engine 9 | . 14 11 14 13 9 2 3 Core 1 | . . . . . . 6 4 Treads 24 | . 27 25 28 28 35 15 17 Leg 1 | . . . . . . 7 3 Wheel 3 | . . . . . . 12 11 Device 4 | . . . . 2 11 6 9 Storage 11 | . 14 14 14 14 9 9 9 Processor 4 | . . . . . 9 11 9 Hackware 1 | . . . . . 2 4 . Protection 4 | . 12 6 . . . . 6 Energy Gun 13 | . 4 27 15 28 12 6 6 Ballistic Gun 6 | . 21 . . . 4 7 . Ballistic Cannon 1 | . . . . . . . 7 Impact Weapon 1 | . . . . . . 3 4 Peak Build Rating 35 | 6 11 12 11 13 29 30 35 Average Rating 16 | 5 8 10 10 11 23 26 28 On Entrance 13 | . 6 11 9 11 13 27 30 Naked Turns . | . . . . . . . . Heaviest Build 65 | 12 34 34 29 32 37 55 65 Greatest Support 86 | 40 40 40 40 40 80 80 86 Greatest Overweight (x) 2 | 1 . 2 . . . 2 1 Average Overweight (x) . | . . . . . . . . Largest Inventory Capacity 20 | 8 15 15 15 15 15 20 20 Average Capacity 15 | 7 12 15 15 15 15 17 20 Most Carried 20 | 4 15 15 15 15 15 20 20 Average Carried 14 | 1 10 13 14 14 14 14 19 Final Capacity 20 | 8 15 15 15 15 15 20 20 Final Carried 20 | 4 15 12 15 15 15 20 20 Class Distribution -------------------- 75% | Mutant 17% | Scavenger-Mutant 6% | Skirmisher Dominant Class ---------------- Mutant | -10/Materials Mutant | -10/Mines Mutant | -10/Exiles Mutant | -9/Mines Skirmisher | -8/Materials Scavenger-Mutant | -8/Garrison Mutant | -8/Materials Resources | -11 -10 -10 -10 -9 -8 -8 -8 ----------- Run | Yrd Mat Min Exi Min Mat Gar Mat Matter Collected 2708 | 338 512 130 20 30 414 719 545 Remotely . | . . . . . . . . Salvage Created 4130 | 169 512 641 . 207 611 953 1037 Parts 207 | 14 45 30 . 14 37 27 40 Haulers Intercepted 5 | . 2 . . . 1 . 2 Recyclers Shooed 6 | . 1 . . . 2 . 3 Parts Field Recycled . | . . . . . . . . Retrieved Matter . | . . . . . . . . Parts Self-Destructed . | . . . . . . . . Prevented . | . . . . . . . . Kills | -11 -10 -10 -10 -9 -8 -8 -8 ------- Run | Yrd Mat Min Exi Min Mat Gar Mat Combat Hostiles Destroyed 70 | . 13 14 . 4 7 14 18 Melee 1 | . . . . . . . 1 Guns 60 | . 13 11 . 3 7 14 12 Cannons 3 | . . . . . . . 3 AOE 5 | . . 3 . 1 . . 1 Classes Destroyed 15 | 3 5 3 . . 1 1 2 Worker 9 | 2 1 3 . . . . 3 Builder 5 | . . 1 . . 2 . 2 Tunneler 6 | 4 1 . . . . . 1 Hauler 5 | . 2 . . . 1 . 2 Recycler 9 | 1 . 3 . . 2 . 3 Mechanic 1 | . . . . . . . 1 Operator 2 | . 1 . . . . . 1 Watcher 3 | . 2 . . . 1 . . Swarmer 19 | . 9 7 . . . . 3 Grunt 38 | . 4 4 . 4 3 13 10 Brawler 2 | . . . . . . . 2 Duelist 1 | . . . . . . 1 . Sentry 7 | . . . . . 4 . 3 Demolisher 2 | . . 2 . . . . . Assembled 1 | . . 1 . . . . . Best Kill Streak 8 | 2 8 4 . 2 3 4 7 Combat Bots Only 8 | . 8 3 . 2 3 4 5 Max Kills in Single Turn 2 | 1 1 2 . 1 1 1 2 Gunslinging . | . . . . . . . . Exploded 1 | . . 1 . 1 . . 1 Melee 1 | . . . . . . . 1 Uniques/NPCs Destroyed . | . . . . . . . . Combat | -11 -10 -10 -10 -9 -8 -8 -8 -------- Run | Yrd Mat Min Exi Min Mat Gar Mat Hostile Shots Fired 514 | . 68 65 . 10 32 136 203 Missed 144 | . 18 18 . 6 8 45 49 Damage Taken 5435 | . 460 743 . 61 372 1444 2355 Core 709 | . 54 92 . . 27 149 387 Absorbed by Shields 49 | . . . . . . 49 . Regen/Repaired (Parts) 127 | . 127 . . . . . . Core Remaining (%) 70 | 100 . . . 41 . . . Volleys Fired 375 | 13 57 40 . 11 42 139 73 Largest 2 | 2 2 2 . 2 2 2 2 Hottest 119 | 40 100 110 . 90 110 88 119 Shots Fired 679 | 26 109 80 . 22 83 217 142 Gun 626 | 26 104 80 . 22 83 217 94 Cannon 48 | . . . . . . . 48 Launcher . | . . . . . . . . Special 5 | . 5 . . . . . . Kinetic 401 | 26 104 . . . 56 167 48 Thermal 145 | . 5 3 . . 3 50 84 Explosive . | . . . . . . . . Electromagnetic 133 | . . 77 . 22 24 . 10 Robot Hit Streak 44 | 6 10 12 . 9 10 44 16 Robot Miss Streak 6 | 3 3 6 . 1 3 2 5 Penetration Max . | . . . . . . . . Secondary Targets 10 | . 2 2 . . 1 5 . Max Gunslinging Chain 1 | . 1 1 . . 1 1 . Shots Hit Robots 498 | 15 64 35 4 19 60 190 111 Core Hits 198 | 8 28 27 . 6 21 64 44 Critical Kills 1 | . . . . . . 1 . Critical Parts Destroyed 1 | . . . . . . . 1 Critical Strikes 12 | . . . . . 1 4 7 Burn 8 | . . . . . 1 3 4 Destroy 1 | . . . . . . 1 . Blast 2 | . . . . . . . 2 Smash 1 | . . . . . . . 1 Melee Attacks 48 | . . . 4 . 6 18 20 Impact 44 | . . . . . 6 18 20 Slashing . | . . . . . . . . Piercing . | . . . . . . . . Sneak Attacks 8 | . . . 4 . 1 . 3 Combat Hostiles . | . . . . . . . . Follow-up Attacks . | . . . . . . . . Damage Inflicted 8618 | 201 898 811 . 373 1123 2352 2860 Guns 6504 | 201 885 526 . 325 954 2352 1261 Cannons 822 | . . . . . . . 822 Explosions 743 | . . 285 . 48 43 . 367 Melee 536 | . . . . . 126 . 410 Ramming 13 | . 13 . . . . . . Kinetic 4277 | 201 885 . . . 671 1698 822 Thermal 2319 | . . 318 . 48 86 654 1213 Explosive 268 | . . . . . . . 268 Electromagnetic 1205 | . . 493 . 325 240 . 147 Impact 536 | . . . . . 126 . 410 Slashing . | . . . . . . . . Piercing . | . . . . . . . . Highest Corruption . | . . . . . . . . Average Corruption . | . . . . . . . . Corruption Purged . | . . . . . . . . Corruption Blocked . | . . . . . . . . Overload Shots . | . . . . . . . . Overflow Damage 297 | . . . . . 106 . 191 Projectiles . | . . . . . . . . Explosions 66 | . . . . . . . 66 Melee 231 | . . . . . 106 . 125 Knockbacks 10 | . . . . . 1 . 9 Impact 2 | . . . . . 1 . 1 Kinetic 7 | . . . . . . . 7 Secondary 1 | . . . . . . . 1 Self-Inflicted Damage 67 | . . 30 . . . . 37 Shots 2 | . . 1 . . . . 1 Rammed 1 | . 1 . . . . . . Targets Rammed 1 | . 1 . . . . . . Kicked . | . . . . . . . . Crushed . | . . . . . . . . Highest Temperature 262 | . 96 262 . 164 35 228 171 Average Temperature 60 | . 30 79 . 69 11 60 53 Received Heat Transfer 2790 | . 93 183 . 33 189 906 1386 Effects 1 | . . 1 . . . . . Energy Bleed 1 | . . 1 . . . . . Siege Activations . | . . . . . . . . Robots Corrupted 2 | . . . . . 1 . 1 Combat Hostiles . | . . . . . . . . Parts Fried 3 | . . . . 1 . . 2 Impact Corruptions 8 | . . . . . 4 . 4 Robots Melted 1 | . . . . . . . 1 Combat Hostiles 1 | . . . . . . . 1 Parts Melted 6 | . . 2 . . 1 1 2 Heat Transferred 5473 | . . 524 . 50 235 1813 2851 Parts Sabotaged . | . . . . . . . . Parts Stolen . | . . . . . . . . Parts Stripped . | . . . . . . . . Power Chain Reactions 8 | . . 4 . 1 1 . 2 Alert | -11 -10 -10 -10 -9 -8 -8 -8 ------- Run | Yrd Mat Min Exi Min Mat Gar Mat Peak Influence 749 | 35 349 404 . 159 309 749 592 Initial 364 | . 22 . . . 3 200 364 Average 224 | 12 149 175 . 49 82 427 448 Maximum Alert Level 3 | . 1 2 . . 1 3 2 Low Security (%) 48 | 100 65 52 . 100 77 . . Level 1 32 | . 34 45 . . 22 52 34 Level 2 17 | . . 1 . . . 39 65 Level 3 1 | . . . . . . 8 . Level 4 . | . . . . . . . . Level 5 . | . . . . . . . . High Security . | . . . . . . . . Max Security . | . . . . . . . . Squads Dispatched 8 | . 1 . . . 2 . 5 Investigation 2 | . . . . . . . 2 Extermination . | . . . . . . . . Reinforcement 3 | . 1 . . . 1 . 1 Assault . | . . . . . . . . Garrison 3 | . . . . . 1 . 2 Intercept . | . . . . . . . . Searches Triggered . | . . . . . . . . Construction Impeded 1 | . . . . . 1 . . Haulers Reinforced . | . . . . . . . . Active Scanning Responses . | . . . . . . . . Cargo Convoy Interrupts . | . . . . . . . . Stealth | -11 -10 -10 -10 -9 -8 -8 -8 --------- Run | Yrd Mat Min Exi Min Mat Gar Mat Distress Signals 9 | . 2 . . . 3 . 4 Communications Jammed . | . . . . . . . . Distress Signals . | . . . . . . . . Times Spotted 113 | . 23 20 . 5 12 19 34 Peak Tracking Total 8 | . 8 5 . 2 5 6 7 Tactical Retreats 13 | . 1 3 . . 1 2 6 Traps | -11 -10 -10 -10 -9 -8 -8 -8 ------- Run | Yrd Mat Min Exi Min Mat Gar Mat Traps Triggered 7 | . . . . . . 7 . Indirectly . | . . . . . . . . Trap Hack Attempts . | . . . . . . . . Triggered . | . . . . . . . . Disarmed . | . . . . . . . . Reprogrammed . | . . . . . . . . Reused 1 | . . 1 . . . . . Traps Extracted . | . . . . . . . . Installed 1 | . . 1 . . . . . Triggered 1 | . . 1 . . . . . Most Traps Carried 8 | . . 1 1 1 1 8 8 Machines | -11 -10 -10 -10 -9 -8 -8 -8 ---------- Run | Yrd Mat Min Exi Min Mat Gar Mat Machines Disabled 9 | . . 3 . . 1 4 1 Max in Single Turn 2 | . . 2 . . 1 1 1 Garrison Relay 1 | . . . . . . 1 . Machines Repaired . | . . . . . . . . Machines Dismantled . | . . . . . . . . Machines Sabotaged . | . . . . . . . . Overloaded Fab Kills . | . . . . . . . . Hacking | -11 -10 -10 -10 -9 -8 -8 -8 --------- Run | Yrd Mat Min Exi Min Mat Gar Mat Machines Accessed 27 | . 9 . 2 1 5 2 8 Terminals 20 | . 7 . . 1 4 2 6 Fabricators . | . . . . . . . . Repair Stations 1 | . 1 . . . . . . Recycling Units 1 | . 1 . . . . . . Scanalyzers 2 | . . . . . . . 2 Garrison Access 1 | . . . . . 1 . . Total Hacks 84 | . 27 . 2 2 19 4 30 Successful 41 | . 13 . 2 . 9 1 16 Failed 42 | . 14 . . 2 9 3 14 Catastrophic 6 | . 1 . . 1 . 1 3 Database Lockouts 1 | . . . . . 1 . . Manual 66 | . 23 . 1 2 20 1 19 Terminals 65 | . 22 . . 2 18 4 19 Fabricators . | . . . . . . . . Repair Stations 2 | . 2 . . . . . . Recycling Units 3 | . 3 . . . . . . Scanalyzers 11 | . . . . . . . 11 Garrison Access 1 | . . . . . 1 . . Terminal Hacks 9 | . 3 . 2 . 2 1 1 Record 1 | . . . 1 . . . . Robot Analysis 5 | . 2 . . . 2 . 1 Prototype ID Bank 1 | . 1 . . . . . . Garrison Registry 1 | . . . . . . 1 . Derelict Proto ID Bank 1 | . . . 1 . . . . Fabricator Hacks . | . . . . . . . . Repair Station Hacks 2 | . 2 . . . . . . Scan Component 1 | . 1 . . . . . . Repair 1 | . 1 . . . . . . Recycling Unit Hacks . | . . . . . . . . Scanalyzer 8 | . . . . . . . 8 Insert Component 4 | . . . . . . . 4 Analyze 4 | . . . . . . . 4 Garrison Access Hacks 1 | . . . . . 1 . . Unlock Access 1 | . . . . . 1 . . Unauthorized Hacks 20 | . 7 . . . 6 . 7 Terminals 19 | . 7 . . . 6 . 6 Botnet 4 | . 1 . . . 2 . 1 Skim 15 | . 6 . . . 4 . 5 Fabricators . | . . . . . . . . Repair Stations . | . . . . . . . . Recycling Units . | . . . . . . . . Scanalyzers 1 | . . . . . . . 1 Extract 1 | . . . . . . . 1 Garrison Access . | . . . . . . . . Data Cores Recovered 1 | . 1 . . . . . . Used . | . . . . . . . . Hacking Detections 23 | . 9 . . 1 4 2 7 Full Trace Events 3 | . 1 . . . . 1 1 Feedback Events . | . . . . . . . . Feedback Blocked . | . . . . . . . . Robot Schematics Acquired . | . . . . . . . . Robots Built . | . . . . . . . . Authchips . | . . . . . . . . Time . | . . . . . . . . Total Robot Build Rating . | . . . . . . . . Part Schematics Acquired 4 | . . . . . . . 4 Parts Built . | . . . . . . . . Authchips . | . . . . . . . . Time . | . . . . . . . . Total Part Build Rating . | . . . . . . . . Parts Repaired 1 | . 1 . . . . . . Time 26 | . 26 . . . . . . Parts Recycled . | . . . . . . . . Recycled Matter . | . . . . . . . . Retrieved Matter . | . . . . . . . . Retrieved Components . | . . . . . . . . Parts Scanalyzed 4 | . . . . . . . 4 Part Schematics Acquired 3 | . . . . . . . 3 Parts Damaged . | . . . . . . . . Bothacking | -11 -10 -10 -10 -9 -8 -8 -8 ------------ Run | Yrd Mat Min Exi Min Mat Gar Mat Used RIF Installer . | . . . . . . . . Robots Hacked 4 | . . . 4 . . . . Non-combat 3 | . . . 3 . . . . Combat 1 | . . . 1 . . . . Robot Hacks Applied 4 | . . . 4 . . . . parse_system 4 | . . . 4 . . . . Relay Couplers Released 4 | . . . . . . 4 . Machine Destruction 4 | . . . . . . 4 . Fabnet Peak Effective % . | . . . . . . . . Robots Rewired . | . . . . . . . . Allies Hacked . | . . . . . . . . Hacks Repelled . | . . . . . . . . Allies | -11 -10 -10 -10 -9 -8 -8 -8 -------- Run | Yrd Mat Min Exi Min Mat Gar Mat Total Allies 5 | . . . . 5 . . . Largest Group 4 | . . . . 4 4 . . Highest-Rated Group 67 | . . . . 67 67 . . Highest-Rated Ally 31 | . . . . 31 31 . . Total Orders . | . . . . . . . . Ally Attacks 44 | . . . . 29 15 . . Total Damage 453 | . . . . 302 151 . . Kills 11 | . . . . 5 6 . . Allies Corrupted . | . . . . . . . . Allies Melted . | . . . . . . . . Intel | -11 -10 -10 -10 -9 -8 -8 -8 ------- Run | Yrd Mat Min Exi Min Mat Gar Mat Robot Analysis Total 5 | . 2 . . . 2 . 1 Derelict Logs Recovered 2 | . . 1 . 1 . . . Drone Launches . | . . . . . . . . Drone Recoveries . | . . . . . . . . Exploration | -11 -10 -10 -10 -9 -8 -8 -8 ------------- Run | Yrd Mat Min Exi Min Mat Gar Mat Turns Passed 8723 | 228 1859 1420 619 946 1003 1310 1338 Spaces Moved 4491 | 102 996 767 377 560 478 654 557 Core 3 | 3 . . . . . . . Treads 3741 | 99 996 745 377 560 478 194 292 Legs . | . . . . . . . . Wheels 747 | . . 22 . . . 460 265 Hover . | . . . . . . . . Flight . | . . . . . . . . Fastest Speed 50 | 50 160 110 160 160 160 105 105 Average Speed 152 | 157 160 166 160 160 160 121 136 Slowest Speed 245 | 160 160 240 160 160 160 240 245 Overloaded Moves . | . . . . . . . . Propulsion Burnouts . | . . . . . . . . Robots Hopped . | . . . . . . . . Cave-ins Triggered . | . . . . . . . . Exploration Rate (%) 63 | 7 98 98 70 92 26 66 53 Regions Visited 7 Branch Regions 3 Pre-discovered Areas 4 | . . . 1 1 . . 2 Known Exits Taken 2 | . 1 . . . 1 . . Unknown Exits Taken 4 | 1 . 1 1 1 . . . Scrap Searched 3 | . . 2 . 1 . . . Spaces Dug 24 | . 5 . . . 3 5 11 Terrain Destroyed 94 | . 5 45 . 3 9 5 27 Melee 19 | . . . . . 3 5 11 Projectile 10 | . 5 . . . . . 5 AOE 65 | . . 45 . 3 6 . 11 Terrain Rammed . | . . . . . . . . Walls Destroyed . | . . . . . . . . Machines Disabled . | . . . . . . . . Actions | -11 -10 -10 -10 -9 -8 -8 -8 --------- Run | Yrd Mat Min Exi Min Mat Gar Mat Total 5649 | 140 1145 832 392 588 638 942 972 Wait 471 | 16 47 9 . 14 72 58 255 Move 4480 | 101 995 766 376 559 478 648 557 Hop . | . . . . . . . . Pick Up 56 | 4 17 3 6 1 7 11 7 Fast Attach 39 | 6 4 2 . 2 5 8 12 Attach 18 | . . 3 . . 3 7 5 Detach 6 | . . . . . . 2 4 Swap 55 | . 10 4 2 . 14 8 17 Drop 63 | . 14 4 4 1 11 7 22 Fire 375 | 13 57 40 . 11 42 139 73 Melee 48 | . . . 4 . 6 18 20 Ram . | . . . . . . . . Kick . | . . . . . . . . Crush 1 | . 1 . . . . . . Escape Stasis 36 | . . . . . . 36 . Rewire . | . . . . . . . . Trap 1 | . . 1 . . . . . Miscellaneous . | . . . . . . . . Route ------- -11/Scrapyard -10/Materials (discovered 5 exits: *Mat x3 / *Min / *Sub) -10/Mines (discovered 4 exits: *Mat x2 / *Exi / Sub) -10/Exiles -9/Mines (discovered 2 exits: *Mat x2) -8/Materials -8/Garrison (discovered 4 exits: *Mat x4) -8/Materials (discovered 3 exits: *Fac x3) History --------- Turn | Location | Event 34 | -11/Scrapyard | Discovered new exit (range 15) 229 | -11/Scrapyard | Entered Materials 306 | -10/Materials | Build established: Mutant 343 | -10/Materials | Destroyed 8 combat bots 591 | -10/Materials | Repaired Lgt. Treads 626 | -10/Materials | Discovered new exit (range 13) 809 | -10/Materials | Discovered new exit (range 6) 897 | -10/Materials | Discovered new exit (range 11) 1445 | -10/Materials | Discovered new exit (range 7) 1618 | -10/Materials | Identified exit to Mines 1683 | -10/Materials | Learned location of 2 exits from Subcaves 1739 | -10/Materials | Learned Materials emergency access door positions 1784 | -10/Materials | Learned Materials emergency access door positions 1820 | -10/Materials | Learned Storage emergency access door positions 1982 | -10/Materials | Identified exit to Materials 2088 | -10/Materials | Entered Mines 2120 | -10/Mines | Identified exit to Subcaves 2182 | -10/Mines | Discovered exit to Materials (range 14) 2499 | -10/Mines | Assembled infested the area 2638 | -10/Mines | Deemed a non-threat by the Exiles lab entrance 2638 | -10/Mines | Discovered new exit (range 5) 2683 | -10/Mines | Found a hidden stash of uninstalled traps 2720 | -10/Mines | Core integrity fell below 50% 2751 | -10/Mines | Discovered exit to Materials (range 8) 3508 | -10/Mines | Entered Exiles 3556 | -10/Exiles | Met 8R-AWN 3586 | -10/Exiles | Met EX-HEX 3631 | -10/Exiles | Met EX-BIN 3665 | -10/Exiles | Aligned with FarCom system 3666 | -10/Exiles | Given EX-Vault access code 3706 | -10/Exiles | Opened EX-Vault 3716 | -10/Exiles | Found AWS/Autocannon 3749 | -10/Exiles | Warned to stay clear of 0b10 Research branches 3783 | -10/Exiles | Found YOLO Cannon 3861 | -10/Exiles | Met EX-DEC 3904 | -10/Exiles | Learned location of Zion (-6) 4110 | -10/Exiles | Discovered new exit (range 11) 4127 | -10/Exiles | Left Exiles lab with YOLO Cannon 4127 | -10/Exiles | Entered Mines 4429 | -9/Mines | A weapon hastily lodged in a ceiling crevice suddenly fell to the ground 4713 | -9/Mines | Assisted by bots powering up and referring to "LRC-V3" 4937 | -9/Mines | Discovered new exit (range 6) 4955 | -9/Mines | Discovered new exit (range 8) 5073 | -9/Mines | Entered Materials 5073 | -8/Materials | Accompanied by 4 allies 5073 | -8/Materials | Evolved 4 slots: Propulsion x2, Utility x2 5078 | -8/Materials | Led the pair of lost Derelicts to an unsafe place 5611 | -8/Materials | Build established: Skirmisher 5745 | -8/Materials | Central database locked down 5844 | -8/Materials | Lost 3 allies 5948 | -8/Materials | Garrison activated, responded to threat 6076 | -8/Materials | Identified exit to Garrison 6076 | -8/Materials | Entered Garrison 6197 | -8/Garrison | Build established: Mutant 6234 | -8/Garrison | Triggered checkpoint 6477 | -8/Garrison | Lost 3 parts (1p1n1w) 6515 | -8/Garrison | Lost 3 parts (2n1w) 6540 | -8/Garrison | Triggered checkpoint 6738 | -8/Garrison | Triggered checkpoint 6743 | -8/Garrison | Build established: Scavenger-Mutant 6801 | -8/Garrison | Lost 3 parts (1p1n1u) 6837 | -8/Garrison | Discovered new exit (range 10) 6852 | -8/Garrison | Discovered new exit (range 6) 6852 | -8/Garrison | Discovered new exit (range 50) 6852 | -8/Garrison | Discovered new exit (range 70) 6852 | -8/Garrison | Discovered new exit (range 66) 7093 | -8/Garrison | Attempted to access garrison exit controls, blocked by remote lockdown 7167 | -8/Garrison | Attempted to access garrison exit controls, blocked by remote lockdown 7234 | -8/Garrison | Garrison Relay disabled 7386 | -8/Garrison | Entered Materials 7999 | -8/Materials | Core integrity fell below 50% 8058 | -8/Materials | Discovered new exit (range 9) 8309 | -8/Materials | Build established: Mutant 8494 | -8/Materials | Identified exit to Factory 8518 | -8/Materials | Garrison activated, responded to threat 8612 | -8/Materials | Learned location of 1 exit from Recycling 8625 | -8/Materials | Core integrity fell below 20% 8642 | -8/Materials | Lost 7 parts (1p3n2u1w) 8663 | -8/Materials | Learned 4 Lower Caves zone layouts 8701 | -8/Materials | Learned Factory recycling unit intel 8709 | -8/Materials | Garrison activated, responded to threat 8724 | -8/Materials | Destroyed by G-47 Trooper with Particle Gun Last Messages --------------- 08681_ K-01 Serf collects debris. 08697_ K-01 Serf destroyed. 08697_ Chain reaction triggered in Lgt. Ion Engine. 08697_ K-01 Serf destroyed. 08701_ >> SKIM: Stored Factory recycling unit intel. 08701_ >> SKIM: Data seek routine purged. 08703_ R-06 Scavenger collects Lgt. Ion Engine. 08706_ U-05 Engineer lays Concrete. 08709_ U-05 Engineer calls for garrison support. 08709_ ALERT: Activating Garrison Access M001. 08709_ U-05 Engineer destroyed. 08715_ Chain reaction triggered in Lgt. Ion Engine. 08715_ R-06 Scavenger destroyed. 08715_ Destroyed Terrain Scanner. 08715_ U-05 Engineer destroyed. 08716_ K-01 Serf collects debris. 08717_ K-01 Serf destroyed. 08719_ K-01 Serf collects debris. 08721_ Critical hit (Burn: +37). 08722_ K-01 Serf collects debris. Map ----- +----------------------------------------------------+ | ?????????????????????????????????????????????????? | | ?????????????????????????????????????????????????? | | ?????????????????????????????????????????????????? | | ?????????????????????????????????????????????????? | | ?????????????????????????????????????????????????? | | ?????????????????????#???????????????????????????? | | ????????????????###"T"########???????????????????? | | ???????????????? ???????????????????? | | ???????????????? ] ????????????????????? | | ????????????????? ????????????????????? | | ?????????????????# ]#????????????????????? | | ???????????????### [[] #????????????????????? | | ???????????????""" []] #????????????????????? | | ???????????????"G []] +????????????????????? | | ????????????????"" ^ g #????????????????????? | | ?????????????????# g #????????????????????? | | ?????????????????# #????????????????????? | | ?????????????????# #????????????????????? | | ???????????????### ^ #????????????????????? | | ???????????????#"" !!! ""#????????????????????? | | ???????????????#"Y !! %Y"#????+???????????????? | | ???????????????#"" !! =""#????????????????????? | | ???????????????#"# #????????????????????? | | ???????########### %k###??+???????????????? | | ???????# # ####;=;|;##?????????????????? | | ???????# ! # ## @ %% #?????????????????? | | ???????# %# ## %%! #?????????????????? | | ???????# =% / ## " = =#?????????????????? | | ???????# # ## """ #?????????????????? | | ???????# ! # + """ #?????????????????? | | ???????# + ## """ #?????????????????? | | ???????# ### ## #?????????????????? | | ???????#########+#?? ## #?????????????????? | | ???????????????# #?? ## #???h?????????????? | | ???????????????# #?? ###########?????????????????? | | ????????######## #?? ????????????????????? | | ????????# # #?? ???????????????????????? | | ????????#! """ # ### #?????????????????????????? | | ????????# """ + #?????????????????????????? | | ????????# """ # #?????????????????????????? | | ????????# # #?????????????????????????? | | ????????# ] # #?????????? ????????????? | | ????????######## #######?????????? #???????????? | | ???????????????# #???????????????? +??????????? | | ???????????????# #???????????????? #?????????? | | ???????????????# #???????????????# #?????????? | | ???????????????#+######?+????????# #?????????? * | | ???????????????# #??????????# #???????????? | | ???????????????# #??????????# #???????????? | | ???????????????# #??????????# #???????????? | +----------------------------------------------------+ Best States ------------- Heat Dissipation 58 Energy Generation 16 Energy Capacity 290 Matter Stores 300 Matter Capacity 300 Sight Range 16 Terrain Scan Range 16 Terrain Scan Density 10 ECM Strength 1 Armor Coverage 150 Evasion (%) 40 Targeting Accuracy 16 Recoil Reduction 4 Offensive Hacking 10 Item Schematics ----------------- ECM Suite | -8/Materials | Scanalyzed Imp. Datajack | -8/Materials | Scanalyzed Lrg. Storage Unit | -8/Materials | Scanalyzed EM Shotgun | -8/Materials | Extracted Robot Schematics ------------------ None Fabricated ------------ Nothing Alien Tech Used ----------------- None Achievements -------------- None Challenges ------------ None Game ------ Seed SensorTiamatBroadsword Manual? 0 Play Time 00:59:38 Cumulative 192.7 hours Start 2025.03.19 @ 21:46:04 End 2025.03.19 @ 22:44:33 Sessions 1 Manual Loads 0 Difficulty Rogue Special Mode None Game No. 93 Rogue 93 Adventurer 0 Explorer 0 Win Type - Total 0 Types 0/0/0/0/0/0/0/0/0 Lore% 53 Gallery% 71 Achievement% 57 Wizard Run 0 Options --------- Layout 0 ASCII 0 Keyboard 0 Movement Mouse Keybinds 0 Fullscreen 1 Font 24/Smallcaps Map View 183x50 Zoom Use 0% Tactical HUD 1 Map Filters NONE Filters NONE Steam 0 RUN: bc4ba67e-59a5-4e44-b420-f578d8c2658f